[Event "3rd President Cup-A 2024"]
[Site "Tashkent"]
[Date "2024.11.29"]
[Round "9.6"]
[White "Puranik, Abhimanyu"]
[Black "Nitish Belurkar"]
[Result "1/2-1/2"]
[ECO "B45"]
[WhiteElo "2652"]
[BlackElo "2434"]
[Annotator "TA"]
[PlyCount "114"]
[EventDate "2024.11.22"]
[EventType "swiss"]
[EventCountry "UZB"]
[SourceTitle "playchess.com"]
[Source "ChessBase"]
[SourceQuality "1"]
[TimeControl "5400+30"]

{[%evp 28,114,19,31,20,-39,61,42,52,58,52,43,58,16,17,27,30,19,9,28,25,25,27,13,23,14,35,0,0,0,0,0,0,0,0,0,9,9,13,10,10,6,8,9,16,27,68,67,70,71,75,65,89,86,106,96,105,61,72,54,66,49,37,33,37,25,74,42,47,44,82,37,141,16,99,103,102,0,8,8,8,-8,-8,-12,0,0,0,0,0]} 1. e4 {[%emt 0:00:24]} c5 {[%emt 0:00:28]} 2. Nf3 {[%emt 0:00:06]} e6 {[%emt 0:00:03]} 3. d4 {[%emt 0:00:14]} cxd4 {[%emt 0:00:04]} 4. Nxd4 {[%emt 0:00:03]} Nf6 {[%emt 0:00:05]} 5. Nc3 {[%emt 0:01:02]} Nc6 {[%emt 0:00:05]} 6. Nxc6 {[%emt 0:00:23]} bxc6 {[%emt 0:00:04]} 7. e5 {[%emt 0:00:04]} Nd5 {[%emt 0:00:04]} 8. Ne4 {[%emt 0:00:03]} Qc7 {[%emt 0:00:03]} 9. f4 {[%emt 0:00:39]} Qb6 {[%emt 0:00:31]} 10. c4 {[%emt 0:00:52]} Ne3 {[%emt 0:00:37]} 11. Qd3 {[%emt 0:01:48]} Bb4+ {[%emt 0:00:05]} 12. Bd2 {[%emt 0:01:36] B45: Sicilian Four Knights.} Ba6 $1 {[%emt 0:00:06][%mdl 4] now scores much better than the old 12...0-0.} 13. b3 {[%emt 0:05:03]} O-O {[%emt 0:00:08]} 14. Bxb4 {[%emt 0:18:42]} Qxb4+ {[%emt 0:00:16]} 15. Kf2 {[%emt 0:00:45]} (15. Nd2 {simplifies} Nxf1 16. Rxf1 c5 17. Kf2) 15... Nd5 {[%emt 0:00:09]} 16. Ng5 {[%emt 0:20:19]} ({White should play} 16. g3 $11) 16... Qb6+ $146 {[%emt 0:16:24]} (16... g6 $15) ({Predecessor:} 16... g6 17. Rd1 f6 18. exf6 Nxf6 19. Be2 e5 20. h4 Rae8 21. h5 exf4 22. Qd4 Qa5 23. Nh3 Ne4+ 24. Kg1 Nc3 25. Bf3 Nxd1 26. Bxd1 Qe1+ 27. Kh2 Qg3+ 28. Kg1 {0-1 Priyanka,K (2143)-Pranesh,M (2507) Paracin op 16th 2023 (1)}) 17. Kg3 $14 {[%emt 0:03:15]} g6 {[%emt 0:07:34]} 18. Qd2 $1 {[%emt 0:01:23]} f6 {[%emt 0:02:55]} 19. Nf3 $1 {[%emt 0:08:48]} Ne3 {[%emt 0:11:14]} 20. Re1 {[%emt 0:04:38]} fxe5 {[%emt 0:06:18]} 21. Nxe5 {[%emt 0:02:39]} Nf5+ $1 {[%emt 0:01:22]} 22. Kh3 {[%emt 0:00:04]} d6 {[%emt 0:03:58]} 23. c5 {[%emt 0:03:48]} dxc5 {[%emt 0:14:12]} 24. Bxa6 {[%emt 0:00:05]} Qxa6 {[%emt 0:00:06]} 25. Qe2 {[%emt 0:00:03]} Qb7 {[%emt 0:10:51]} 26. g3 {[%emt 0:01:47]} Rad8 {[%emt 0:02:00]} 27. Ng4 {[%emt 0:01:16]} Nd4 {[%emt 0:03:48]} 28. Qe5 {[%emt 0:01:55]} Qg7 {[%emt 0:00:06]} 29. Qxg7+ {[%emt 0:02:51]} (29. Qxc5 Rd5 30. Qc1 c5 $15) 29... Kxg7 {[%emt 0:00:06]} 30. Re4 {[%emt 0:00:11]} g5 {[%emt 0:04:32]} 31. fxg5 {[%emt 0:03:32]} Rf5 {[%emt 0:06:43]} 32. Kg2 {[%emt 0:03:16]} Rxg5 {[%emt 0:00:04]} 33. Ne3 {[%emt 0:01:37]} Kf7 {[%emt 0:02:47]} 34. Rf1+ {[%emt 0:03:53]} Ke7 {[%emt 0:00:07]} 35. g4 {[%emt 0:00:40]} Rgg8 {[%emt 0:04:02]} 36. Re5 {[%emt 0:00:44]} Kd6 {[%emt 0:00:52]} 37. Rh5 $1 {[%emt 0:00:07]} Rg7 {[%emt 0:03:21]} 38. h3 {[%emt 0:00:04]} Rdd7 {[%emt 0:00:40]} 39. Rd1 {[%emt 0:01:07]} Kc7 {[%emt 0:01:55]} 40. Rxc5 {[%emt 0:00:28]} Nb5 {[%emt 0:00:14]} 41. Rxd7+ {[%emt 0:02:35]} Rxd7 {[%emt 0:00:02]} 42. Rc2 {[%emt 0:00:08]} Rd3 {[%emt 0:01:03]} 43. Nc4 {[%emt 0:00:05]} Rd5 {[%emt 0:00:59]} 44. Re2 {[%emt 0:01:51]} Kd7 $1 {[%emt 0:00:09]} 45. h4 {[%emt 0:00:17]} Ke7 {[%emt 0:00:44]} 46. Kg3 {[%emt 0:00:48]} Nd4 {[%emt 0:00:53]} (46... h6 $11) 47. Rf2 {[%emt 0:01:22]} h5 {[%emt 0:00:26]} 48. Ne3 {[%emt 0:01:00]} Rc5 {[%emt 0:00:24]} 49. g5 {[%emt 0:00:14]} a5 {[%emt 0:00:13]} (49... Rc1 $14) 50. Kf4 {[%emt 0:03:00]} (50. g6 $16 {g7 is the strong threat.} Nf5+ 51. Nxf5+ exf5 52. Kf4) 50... a4 {[%emt 0:00:40] [#]} (50... Nf5 $11) 51. Ke4 $1 $16 {[%emt 0:00:10]} (51. bxa4 $6 Ra5 $11) 51... Nb5 {[%emt 0:00:13] [#]} ({Don't go for} 51... Nf5 $2 52. Nxf5+ (52. bxa4 Nxh4 53. Rc2 Ra5 $17) 52... exf5+ 53. Rxf5 $18) 52. Nc4 {[%emt 0:00:29]} ({Don't play} 52. bxa4 Nd6+ 53. Kd3 Ra5 $11) (52. g6 $1 $16 {[%cal Rg6g7] Strongly threatening g7.} axb3 53. Rf7+ (53. axb3 Nd6+ 54. Kd4 Rc1 $11) 53... Ke8 54. axb3 Nd6+ 55. Kd4) 52... axb3 $11 {[%emt 0:00:11]} 53. axb3 {[%emt 0:00:00]} Rd5 {[%emt 0:00:13]} 54. g6 {[%emt 0:00:27]} Nc3+ {[%emt 0:00:06]} 55. Kf3 {[%emt 0:00:13]} Rf5+ {[%emt 0:00:03]} 56. Kg2 {[%emt 0:00:04]} Rxf2+ {[%emt 0:00:19]} 57. Kxf2 {[%emt 0:00:02]} Kf6 {[%emt 0:00:01]} 1/2-1/2

[Event "3rd President Cup-A 2024"]
[Site "Tashkent"]
[Date "2024.11.29"]
[Round "9.7"]
[White "Jubin Jimmy"]
[Black "Karthikeyan, Murali"]
[Result "0-1"]
[ECO "D31"]
[WhiteElo "2453"]
[BlackElo "2625"]
[Annotator "RC"]
[PlyCount "110"]
[EventDate "2024.11.22"]
[EventType "swiss"]
[EventCountry "UZB"]
[SourceTitle "playchess.com"]
[Source "ChessBase"]
[SourceQuality "1"]
[TimeControl "5400+30"]

1. d4 {[%emt 0:02:15]} d5 {[%emt 0:00:16]} 2. c4 {[%emt 0:00:27]} e6 {[%emt 0:00:30]} 3. Nc3 {[%emt 0:00:22]} h6 {[%emt 0:00:17]} 4. cxd5 {[%emt 0:00:32]} exd5 {[%emt 0:00:06]} 5. Bf4 {[%emt 0:00:07]} c6 {[%emt 0:00:26]} 6. e3 {[%emt 0:00:36]} Bf5 {[%emt 0:00:37]} 7. Bd3 {[%emt 0:02:21]} Bxd3 {[%emt 0:01:26]} 8. Qxd3 {[%emt 0:00:06]} Bd6 {[%emt 0:00:32]} 9. Nge2 {[%emt 0:02:29]} Ne7 {[%emt 0:00:46]} 10. Bxd6 {[%emt 0:07:04]} Qxd6 {[%emt 0:00:09]} 11. Ng3 {[%emt 0:00:24]} Na6 {[%emt 0:05:07]} 12. a3 {[%emt 0:03:21]} Nc7 {[%emt 0:01:05]} 13. Rd1 {[%emt 0:08:48]} O-O {[%emt 0:03:42]} 14. Nf5 {[%emt 0:02:19]} Nxf5 {[%emt 0:05:15]} 15. Qxf5 {[%emt 0:00:03]} Qe7 {[%emt 0:01:43]} 16. O-O {[%emt 0:05:10]} Rad8 {[%emt 0:02:57]} 17. Na4 {[%emt 0:10:19]} Nb5 {[%emt 0:04:43]} 18. Nc5 {[%emt 0:00:48]} Nd6 {[%emt 0:01:18]} 19. Qe5 {[%emt 0:10:08]} Qh4 {[%emt 0:06:55]} 20. Qg3 {[%emt 0:02:26]} Qf6 {[%emt 0:01:19]} 21. Rc1 {[%emt 0:08:13]} Rfe8 {[%emt 0:02:26]} 22. b3 {[%emt 0:01:28]} Qe7 {[%emt 0:04:13]} 23. Qf3 {[%emt 0:03:08]} g6 {[%emt 0:04:17]} 24. h3 {[%emt 0:04:47]} h5 {[%emt 0:02:51]} 25. Rfe1 {[%emt 0:04:01]} Nf5 {[%emt 0:09:18]} 26. a4 {[%emt 0:01:48]} a5 {[%emt 0:02:59]} 27. Qf4 {[%emt 0:00:36]} Nd6 {[%emt 0:02:41]} 28. Nd3 {[%emt 0:01:11]} h4 {[%emt 0:02:00]} 29. Qe5 {[%emt 0:00:57]} f6 {[%emt 0:05:48]} 30. Qxe7 {[%emt 0:00:26]} Rxe7 {[%emt 0:00:01]} 31. Rc5 {[%emt 0:00:37]} Ra8 {[%emt 0:00:09]} 32. Rb1 {[%emt 0:00:26]} g5 {[%emt 0:01:19]} 33. Rc2 {[%emt 0:01:07]} Kf7 {[%emt 0:01:13]} 34. Kf1 {[%emt 0:00:06]} Kg6 {[%emt 0:03:20]} 35. Re1 {[%emt 0:01:57]} Nf5 {[%emt 0:01:24]} 36. Rc5 {[%emt 0:00:13]} Kh6 {[%emt 0:00:48]} 37. Rcc1 {[%emt 0:02:10]} Rg7 {[%emt 0:01:36]} 38. Nc5 {[%emt 0:00:31]} Re8 {[%emt 0:01:13]} 39. Rb1 {[%emt 0:00:47]} g4 {[%emt 0:03:55]} 40. hxg4 {[%emt 0:02:08]} Rxg4 {[%emt 0:00:02]} 41. Nd7 {[%emt 0:03:08]} Rg6 {[%emt 0:00:48]} 42. b4 {[%emt 0:00:23]} Rd8 {[%emt 0:04:54]} 43. Nc5 {[%emt 0:00:24]} Rdg8 {[%emt 0:00:48]} 44. bxa5 {[%emt 0:01:04]} Rxg2 {[%emt 0:00:32]} 45. Ke2 {[%emt 0:00:36]} h3 {[%emt 0:00:31]} 46. Rh1 {[%emt 0:01:26]} R8g3 {[%emt 0:02:15]} 47. Kf1 {[%emt 0:05:14]} Nxe3+ {[%emt 0:00:10]} 48. fxe3 {[%emt 0:00:02]} Rf3+ {[%emt 0:00:20]} 49. Ke1 {[%emt 0:00:01]} Rxe3+ {[%emt 0:01:20]} 50. Kf1 {[%emt 0:00:01]} Rf3+ {[%emt 0:00:16]} 51. Ke1 {[%emt 0:00:01]} h2 {[%emt 0:01:16]} 52. Nxb7 {[%emt 0:01:08]} Re3+ {[%emt 0:00:52]} 53. Kd1 {[%emt 0:01:30]} Ree2 {[%emt 0:02:05]} 54. Nc5 {[%emt 0:05:12]} Ra2 {[%emt 0:00:09]} 55. Re1 {[%emt 0:00:33]} Rgd2+ {[%emt 0:00:08]} 0-1

[Event "3rd President Cup-A 2024"]
[Site "Tashkent"]
[Date "2024.11.29"]
[Round "9.8"]
[White "Pranesh M"]
[Black "Rakshitta Ravi"]
[Result "1-0"]
[ECO "C42"]
[WhiteElo "2580"]
[BlackElo "2295"]
[Annotator "TA"]
[PlyCount "79"]
[EventDate "2024.11.22"]
[EventType "swiss"]
[EventCountry "UZB"]
[SourceTitle "playchess.com"]
[Source "ChessBase"]
[SourceQuality "1"]
[TimeControl "5400+30"]

{[%evp 14,79,35,28,38,26,28,29,30,17,27,23,38,23,23,24,0,0,16,15,28,10,45,42,35,34,35,37,41,23,45,30,24,38,25,18,13,23,28,2,183,172,156,160,194,152,114,99,93,94,171,160,406,405,397,358,613,593,610,580,606,593,624,341,331,303,774,709]} 1. e4 {[%emt 0:00:03]} e5 {[%emt 0:05:33]} 2. Nf3 {[%emt 0:00:11]} Nf6 {[%emt 0:00:18]} 3. Nxe5 {[%emt 0:00:47]} d6 {[%emt 0:00:05]} 4. Nf3 {[%emt 0:00:05]} Nxe4 {[%emt 0:00:05]} 5. Nc3 {[%emt 0:00:04]} Nxc3 {[%emt 0:00:35]} 6. dxc3 {[%emt 0:00:04]} Be7 {[%emt 0:00:35]} 7. Be3 {[%emt 0:00:06]} Nc6 {[%emt 0:00:14]} 8. Qd2 {[%emt 0:00:30]} Bf5 {[%emt 0:00:08]} 9. O-O-O {[%emt 0:01:22]} Qd7 {[%emt 0:01:30]} 10. h4 {[%emt 0:02:26]} a6 {[%emt 0:04:28] White has an edge.} 11. Nd4 {[%emt 0:09:01]} Nxd4 {[%emt 0:03:36]} 12. Bxd4 {[%emt 0:01:30]} Rg8 {[%emt 0:02:53]} 13. h5 {[%emt 0:11:22]} h6 {[%emt 0:04:33]} 14. f3 {[%emt 0:05:38]} O-O-O {[%emt 0:03:04]} 15. Qf2 {[%emt 0:01:53]} Kb8 {[%emt 1:10:23]} 16. Kb1 {[%emt 0:02:34]} Qc6 {[%emt 0:00:00]} 17. Rg1 {[%emt 0:11:08]} d5 {[%emt 0:00:00]} 18. g4 {[%emt 0:00:24][%cal Bg2g4,Bg4g5][%mdl 32]} Bh7 {[%emt 0:00:00]} 19. Bd3 {[%emt 0:03:05]} Bxd3 {[%emt 0:00:00]} 20. Rxd3 {[%emt 0:00:14]} Bf6 {[%emt 0:00:00]} 21. Be3 {[%emt 0:03:08]} Rge8 {[%emt 0:00:00]} 22. f4 {[%emt 0:01:26]} Re4 {[%emt 0:00:00]} 23. g5 {[%emt 0:03:22]} Be7 {[%emt 0:00:00]} 24. Ba7+ {[%emt 0:00:51]} Ka8 {[%emt 0:04:30] Hoping for ...b6.} 25. Bd4 Bf8 {[%emt 0:00:00]} 26. Rgd1 {[%emt 0:07:53]} hxg5 $2 {[%emt 0:00:00]} (26... Qd7 $11 {and Black has nothing to worry.}) 27. fxg5 $18 {[%emt 0:00:21]} Qe6 {[%emt 0:00:00]} 28. a3 {[%emt 0:04:35]} Re8 {[%emt 0:00:00]} 29. Qf3 {[%emt 0:06:05]} c6 {[%emt 0:00:00]} 30. Bg1 {[%emt 0:09:28] Strongly threatening Qf2. White is more active.} Bd6 {[%emt 0:00:00]} 31. c4 $1 {[%emt 0:02:54]} Rxc4 {[%emt 0:00:00]} (31... Qg4 $16) 32. Bd4 $40 {[%emt 0:00:05][%mdl 128] White goes for the king.} Bf8 $2 {[%emt 0:01:54] [#]} (32... Rg8 $16 {was necessary.} 33. b3 Rxd4 34. Rxd4 Qe5) 33. Re3 $1 {[%emt 0:02:58]} (33. b3 Rxd4 34. Rxd4 Qe5 $16) 33... Qd7 {[%emt 0:00:11]} 34. Qg4 {[%emt 0:01:09]} Re6 $2 {[%emt 0:02:11]} (34... Qd8 35. Rxe8 Qxe8) 35. Rxe6 {[%emt 0:00:49]} fxe6 {[%emt 0:00:16]} 36. b3 {[%emt 0:00:07]} Rxd4 {[%emt 0:00:23]} 37. Qxd4 {[%emt 0:00:07]} (37. Rxd4 Bd6 38. Rd1 Qe7) 37... Qf7 {[%emt 0:00:35] [#]} 38. h6 {[%emt 0:01:52][%mdl 512]} gxh6 {[%emt 0:00:22] [#]} 39. Qf6 {[%emt 0:00:08]} (39. gxh6 Bxh6 40. Qh8+ Bf8 $11) 39... Qg8 {[%emt 0:01:06]} (39... Qxf6 40. gxf6 Kb8 (40... Bxa3 $2 {is the wrong capture.} 41. Re1 $18)) 40. gxh6 {[%emt 0:00:07] Weighted Error Value: White=0.18 (very precise) /Black=0.43.  Loses game:     	---       	Black=2      Mistake:       	---       	Black=3      Inaccurate:     	White=1     	Black=1      OK:         	White=8     	Black=11     Best:        	White=1     	Black=1      Strong:       	White=2     	---} 1-0

[Event "3rd President Cup-A 2024"]
[Site "Tashkent"]
[Date "2024.11.29"]
[Round "9.9"]
[White "Xu, Minghui"]
[Black "Gareyev, Timur"]
[Result "0-1"]
[ECO "A45"]
[WhiteElo "2405"]
[BlackElo "2552"]
[Annotator "TA"]
[PlyCount "72"]
[EventDate "2024.11.22"]
[EventType "swiss"]
[EventCountry "UZB"]
[SourceTitle "playchess.com"]
[Source "ChessBase"]
[SourceQuality "1"]
[TimeControl "5400+30"]

{[%evp 9,72,7,12,0,7,12,-2,-13,-18,-48,-36,-56,-64,-67,-56,-50,-47,-109,-99,-109,-93,-101,-88,-106,0,0,0,-111,-101,-111,-95,-82,-88,-71,-95,-71,-72,-187,-98,-272,-102,-189,-186,-456,0,-833,-839,-856,-809,-1230,-1230,-1224,-1217,-1197,-1195,-29988,-29987,-29987,-29988,-29988,-29989,-29994,-29995,-29995,-812]} 1. d4 {[%emt 0:00:17]} Nf6 {[%emt 0:00:30]} 2. g3 {[%emt 0:01:05]} c5 {[%emt 0:05:28]} 3. d5 {[%emt 0:01:15]} b5 {[%emt 0:00:54]} 4. Bg2 {[%emt 0:00:40]} d6 {[%emt 0:00:42]} 5. e4 {[%emt 0:18:54]} g6 {[%emt 0:02:58]} 6. f4 {[%emt 0:02:26]} Bg7 {[%emt 0:02:13]} 7. e5 {[%emt 0:05:40]} Nfd7 {[%emt 0:02:28]} 8. Nf3 {[%emt 0:03:24] The position is equal.} Nb6 {[%emt 0:12:24]} 9. e6 {[%emt 0:22:16]} fxe6 {[%emt 0:02:30]} 10. Ng5 {[%emt 0:00:27]} exd5 {[%emt 0:22:24]} 11. Bxd5 {[%emt 0:00:07] [#]} Qc7 $1 {[%emt 0:15:23] ...Nxd5 would now be deadly.} 12. Bxa8 {[%emt 0:17:00]} Nxa8 {[%emt 0:00:10]} 13. Qd5 {[%emt 0:00:13]} (13. O-O $15) 13... Qc6 $17 {[%emt 0:03:44]} 14. Qf7+ {[%emt 0:01:14]} (14. Qxc6+ $2 Nxc6 15. c3 Nb6 $19) 14... Kd8 {[%emt 0:01:57]} 15. Rf1 {[%emt 0:00:06]} Bf6 {[%emt 0:00:41] A strong pair of Bishops.} 16. Nc3 {[%emt 0:01:29]} (16. Nxh7 Qe4+ 17. Kd2 Bg4 (17... Be6 $2 18. Qxe6 Qxe6 19. c3 $19) (17... Be6 $2 18. Qxe6 Qxe6 19. Rf2 $19)) 16... Bxc3+ {[%emt 0:01:32]} ({Black should play} 16... Nc7 $17 {...Qg2 is the strong threat.} 17. Bd2 (17. Nxh7 $2 Bxc3+ 18. bxc3 Qe4+ 19. Kf2 Bh3 $19) 17... b4) 17. bxc3 $11 {[%emt 0:01:33][%cal Oc1b2]} Nb6 {[%emt 0:02:39]} 18. f5 {[%emt 0:07:02]} (18. Nxh7 $2 Qe4+ 19. Kf2 Bh3 $19 (19... Qxc2+ $2 20. Kg1 $19)) (18. Qg7 $11 Re8 19. Kf2 (19. Nxh7 Qe4+ 20. Kf2 Bh3 $19) (19. Qxh7 Bf5 $11)) 18... Bxf5 $17 {[%emt 0:03:33]} 19. g4 {[%emt 0:02:09]} Bxc2 {[%emt 0:03:02] White must now prevent ...Bd3.} 20. Qf2 {[%emt 0:01:42]} Bd3 {[%emt 0:00:40][%cal Od8c8] Threatens to win with ...Kc8!} 21. Nf7+ {[%emt 0:01:32]} Kd7 {[%emt 0:02:20]} (21... Ke8 {feels hotter.} 22. Nxh8 Qe4+ 23. Be3 Nd5) 22. Nxh8 {[%emt 0:00:38][%cal Of2f3] [#]} Qe4+ {[%emt 0:02:22]} 23. Qe3 {[%emt 0:03:40]} (23. Be3 $17 Nc4 24. Qf3 Nxe3 (24... Qxe3+ 25. Qxe3 Nxe3 26. Rf8 $18) 25. Qxe4 Bxe4 26. Rf8) 23... Qc4 $19 {[%emt 0:00:46][%mdl 1024] Black has strong compensation.} 24. Rf8 {[%emt 0:02:37]} (24. Qf3 $17 {was called for.} Bxf1 (24... Qxc3+ 25. Kf2 $17) 25. Bd2) 24... Nc6 $2 {[%emt 0:00:43]} (24... Qxc3+ $19 25. Qd2 (25. Kf2 $2 Nc6 $19) 25... Qd4 (25... Qxa1 26. Rxb8 Qe5+ 27. Qe3 $19)) 25. Bd2 {[%emt 0:01:06] [#]} (25. Kd2 $17 Ne5 26. Nf7 Qxf7 27. Rxf7 Nbc4+ 28. Ke1 Nxe3 29. Rxe7+ Kxe7 30. Bxe3) 25... Nd5 $1 {[%emt 0:04:03]} 26. Qf2 {[%emt 0:00:53]} (26. Qf3) 26... Ne5 $2 $40 {[%emt 0:01:39][%mdl 128] Black mounts an attack.} ({Weaker is} 26... Nxc3 27. Rf4 Ne4 28. Qe3 $17) (26... Qxg4 $2 27. Bf4 $19) (26... Qe4+ $19 27. Be3 Ne5 (27... Qxe3+ $2 28. Qxe3 Nxe3 29. Kd2 $18) (27... Nxe3 $2 28. Qf3 $19)) 27. Rf4 $2 {[%emt 0:02:37][%mdl 8192]} Nxf4 {[%emt 0:01:45]} 28. Qxf4 {[%emt 0:00:10]} Be4 {[%emt 0:00:24]} ({Not} 28... Nxg4 29. Qxc4 Bxc4 30. a4 $16) 29. Qe3 {[%emt 0:01:08]} Bg2 {[%emt 0:02:21][%csl Gg2][%cal Rc4f1]} 30. Kd1 {[%emt 0:01:29]} Bf3+ {[%emt 0:00:36]} 31. Ke1 {[%emt 0:00:34]} Qxg4 {[%emt 0:00:28] ( -> ...Qh4+). White is weak on the light squares} 32. a4 {[%emt 0:00:34]} Qh4+ {[%emt 0:00:32] Black mates.} 33. Kf1 {[%emt 0:00:06]} Qh3+ {[%emt 0:00:47]} 34. Ke1 {[%emt 0:00:02]} Qxh2 {[%emt 0:00:23]} 35. Rc1 {[%emt 0:01:22]} Qh1+ {[%emt 0:00:52]} 36. Kf2 {[%emt 0:00:06]} Ng4+ {[%emt 0:00:12] Weighted Error Value: White=0.89/Black=0.20 (precise) .  Loses game:     	White=2     	---        Missed win:     	---       	Black=2      Mistake:       	White=5     	Black=1      Inaccurate:     	White=1     	---        OK:         	White=5     	Black=9      Best:        	White=3     	Black=6      Strong:       	---       	Black=2} (36... Qg2+ $142 37. Ke1 g5 (37... bxa4 38. Nxg6 Qh1+ 39. Kf2 Ng4+ 40. Kg3 Qg2+ 41. Kf4 Nxe3 42. Kxe3 Qe2+ 43. Kf4 e5+ 44. Nxe5+ dxe5+ 45. Kf5 Qxd2 46. Rd1 Bxd1 47. Kf6 Qh6+ 48. Kxe5 Bc2 49. Kd5 Qd6+ 50. Kc4 Bd3#) (37... Qh1+ {is a self mate.} 38. Kf2 Ng4+ 39. Kg3 Qg2+ 40. Kf4 g5+ 41. Kxg5 Nxe3+ 42. Kh6 Nf5+ 43. Kxh7 Qg7#) 38. axb5 Qh1+ 39. Kf2 Ng4+ 40. Kg3 Qg2#) 0-1

[Event "3rd President Cup-A 2024"]
[Site "Tashkent"]
[Date "2024.11.29"]
[Round "9.10"]
[White "Bernadskiy, Vitaliy"]
[Black "Khubukshanov, Erdem"]
[Result "1/2-1/2"]
[ECO "E11"]
[WhiteElo "2543"]
[BlackElo "2443"]
[Annotator "RC"]
[PlyCount "172"]
[EventDate "2024.11.22"]
[EventType "swiss"]
[EventCountry "UZB"]
[SourceTitle "playchess.com"]
[Source "ChessBase"]
[SourceQuality "1"]
[TimeControl "5400+30"]

1. d4 {[%emt 0:00:04]} Nf6 {[%emt 0:04:01]} 2. Nf3 {[%emt 0:00:07]} e6 {[%emt 0:00:46]} 3. c4 {[%emt 0:00:25]} d5 {[%emt 0:00:42]} 4. g3 {[%emt 0:00:05]} Bb4+ {[%emt 0:06:21]} 5. Bd2 {[%emt 0:00:14]} Be7 {[%emt 0:00:52]} 6. Bg2 {[%emt 0:00:07]} O-O {[%emt 0:00:13]} 7. O-O {[%emt 0:00:43]} Nbd7 {[%emt 0:00:31]} 8. Qc2 {[%emt 0:00:45]} c6 {[%emt 0:00:26]} 9. Rc1 {[%emt 0:01:39]} a5 {[%emt 0:03:35]} 10. a4 {[%emt 0:00:31]} Ne4 {[%emt 0:02:42]} 11. Ne1 {[%emt 0:03:59]} f5 {[%emt 0:04:41]} 12. Nd3 {[%emt 0:00:05]} Qe8 {[%emt 0:04:26]} 13. Be1 {[%emt 0:02:57]} g5 {[%emt 0:03:58]} 14. Nd2 {[%emt 0:00:07]} Bd6 {[%emt 0:06:50]} 15. Nf3 {[%emt 0:03:23]} Bc7 {[%emt 0:22:20]} 16. Nfe5 {[%emt 0:04:40]} Rf6 {[%emt 0:00:13]} 17. f3 {[%emt 0:09:08]} Nd6 {[%emt 0:02:00]} 18. Qd2 {[%emt 0:00:20]} h6 {[%emt 0:02:36]} 19. h4 {[%emt 0:03:54]} gxh4 {[%emt 0:06:59]} 20. c5 {[%emt 0:06:23]} Nc4 {[%emt 0:02:33]} 21. Nxc4 {[%emt 0:01:45]} dxc4 {[%emt 0:00:11]} 22. Rxc4 {[%emt 0:00:05]} e5 {[%emt 0:12:09]} 23. dxe5 {[%emt 0:01:24]} Nxe5 {[%emt 0:00:27]} 24. Rxh4 {[%emt 0:00:17]} Nxd3 {[%emt 0:00:44]} 25. Qxd3 {[%emt 0:01:02]} Rg6 {[%emt 0:01:37]} 26. e4 {[%emt 0:07:54]} Qf7 {[%emt 0:03:26]} 27. Bc3 {[%emt 0:07:44]} Be6 {[%emt 0:01:05]} 28. f4 {[%emt 0:00:57]} Rd8 {[%emt 0:00:56]} 29. Qe3 {[%emt 0:00:32]} fxe4 {[%emt 0:01:21]} 30. f5 {[%emt 0:02:44]} Qxf5 {[%emt 0:01:29]} 31. Bxe4 {[%emt 0:03:45]} Qg5 {[%emt 0:00:44]} 32. Qxg5 {[%emt 0:01:43]} Rxg5 {[%emt 0:00:02]} 33. Rxh6 {[%emt 0:00:19]} Rxg3+ {[%emt 0:01:14]} 34. Kf2 {[%emt 0:06:22]} Rf8+ {[%emt 0:00:28]} 35. Bf6 {[%emt 0:00:03]} Kf7 {[%emt 0:01:00]} 36. Re1 {[%emt 0:10:10]} Rg4 {[%emt 0:02:32]} 37. Rh7+ {[%emt 0:01:47]} Kxf6 {[%emt 0:00:12]} 38. Rxc7 {[%emt 0:00:03]} Rf7 {[%emt 0:00:50]} 39. Rxf7+ {[%emt 0:00:12]} Bxf7 {[%emt 0:00:32]} 40. Re3 {[%emt 0:02:51]} Rh4 {[%emt 0:00:52]} 41. Rf3+ {[%emt 0:02:44]} Ke5 {[%emt 0:00:26]} 42. Rxf7 {[%emt 0:01:55]} Rxe4 {[%emt 0:01:17]} 43. Rxb7 {[%emt 0:00:03]} Kd5 {[%emt 0:00:21]} 44. Ra7 {[%emt 0:00:28]} Rxa4 {[%emt 0:00:29]} 45. Ke3 {[%emt 0:00:40]} Kxc5 {[%emt 0:01:18]} 46. Kd3 {[%emt 0:00:04]} Kb6 {[%emt 0:00:28]} 47. Ra8 {[%emt 0:00:08]} Rh4 {[%emt 0:00:20]} 48. Kc3 {[%emt 0:01:09]} Kb5 {[%emt 0:00:16]} 49. Rb8+ {[%emt 0:00:45]} Kc5 {[%emt 0:00:01]} 50. Ra8 {[%emt 0:00:05]} Rh3+ {[%emt 0:00:12]} 51. Kc2 {[%emt 0:00:03]} Kb4 {[%emt 0:00:13]} 52. Rb8+ {[%emt 0:00:05]} Kc4 {[%emt 0:00:04]} 53. Ra8 {[%emt 0:00:14]} Rh2+ {[%emt 0:00:23]} 54. Kb1 {[%emt 0:00:02]} Rh5 {[%emt 0:00:03]} 55. Kc2 {[%emt 0:00:03]} Rg5 {[%emt 0:01:05]} 56. Ra7 {[%emt 0:00:32]} Rc5 {[%emt 0:00:29]} 57. Rh7 {[%emt 0:00:13]} Kb4+ {[%emt 0:00:23]} 58. Kb1 {[%emt 0:00:08]} Rc4 {[%emt 0:00:52]} 59. Rb7+ {[%emt 0:00:40]} Kc5 {[%emt 0:00:02]} 60. Ra7 {[%emt 0:00:04]} Kb6 {[%emt 0:00:05]} 61. Rh7 {[%emt 0:00:23]} Rf4 {[%emt 0:00:14]} 62. Rh5 {[%emt 0:00:17]} Re4 {[%emt 0:01:06]} 63. Rg5 {[%emt 0:00:07]} Rd4 {[%emt 0:00:05]} 64. Rh5 {[%emt 0:00:08]} Rd5 {[%emt 0:00:16]} 65. Rh8 {[%emt 0:00:06]} Rg5 {[%emt 0:00:07]} 66. Ra8 {[%emt 0:00:14]} Rf5 {[%emt 0:00:06]} 67. Ka2 {[%emt 0:00:17]} Kb5 {[%emt 0:00:14]} 68. Rb8+ {[%emt 0:00:14]} Kc4 {[%emt 0:00:04]} 69. Ra8 {[%emt 0:00:16]} Rg5 {[%emt 0:01:16]} 70. Ka3 {[%emt 0:00:39]} Rg3+ {[%emt 0:00:15]} 71. Ka2 {[%emt 0:00:08]} Rg5 {[%emt 0:00:27]} 72. Ka3 {[%emt 0:00:03]} Rh5 {[%emt 0:00:31]} 73. Ra7 {[%emt 0:00:07]} Rh3+ {[%emt 0:00:27]} 74. Ka2 {[%emt 0:00:04]} Kb5 {[%emt 0:00:04]} 75. Rb7+ {[%emt 0:00:15]} Kc5 {[%emt 0:00:05]} 76. Ra7 {[%emt 0:00:03]} Kb6 {[%emt 0:00:02]} 77. Ra8 {[%emt 0:00:08]} Rh5 {[%emt 0:00:22]} 78. Ka3 {[%emt 0:00:09]} Kb7 {[%emt 0:00:50]} 79. Rg8 {[%emt 0:00:07]} Rh4 {[%emt 0:00:06]} 80. Rg5 {[%emt 0:00:14]} Kb6 {[%emt 0:00:06]} 81. Rf5 {[%emt 0:00:52]} Rd4 {[%emt 0:00:14]} 82. Rg5 {[%emt 0:00:04]} Rd3+ {[%emt 0:01:01]} 83. b3 {[%emt 0:00:34]} Rd1 {[%emt 0:03:13]} 84. Rh5 {[%emt 0:00:15]} Rd5 {[%emt 0:01:31]} 85. Rxd5 {[%emt 0:00:13]} cxd5 {[%emt 0:00:03]} 86. b4 {[%emt 0:00:05]} Kb5 {[%emt 0:00:05]} 1/2-1/2